fUSD/lending_fUSD_20240324
["ID","MTS","AMOUNT","RATE_DAILY","PERIOD"]
[320320375,1711288250540,-255.78919344,0.00019626,2]
[320320376,1711288250549,-150.0,0.00019626,2]
[320320377,1711288250559,-150.0,0.00019627,2]
[320320378,1711288250569,-150.0,0.00019629,2]
[320320379,1711288250579,-150.0,0.00019632,2]
[320320380,1711288250589,-164.07,0.00019632,2]
[320320381,1711288250599,-150.0,0.00019633,2]
[320320382,1711288250609,-150.0,0.00019636,2]
[320320383,1711288250620,-150.0,0.00019642,2]
[320320384,1711288250630,-184.59537863,0.00019642,2]
[320320385,1711288250640,-150.0,0.00019644,2]
[320320386,1711288250650,-150.0,0.00019644,2]
[320320387,1711288250660,-150.0,0.00019647,2]
[320320388,1711288250670,-2556.80203619,0.00019651,2]
[320320389,1711288250679,-150.0,0.00019651,2]
[320320390,1711288250689,-150.0,0.00019653,2]
[320320391,1711288250699,-158.0,0.0001966,2]
[320320392,1711288250709,-1236.45752342,0.00019664,2]
[320320393,1711288250718,-150.0,0.00019667,2]
[320320394,1711288250728,-150.0,0.00019671,2]
[320320395,1711288250738,-150.0,0.00019672,2]
[320320396,1711288250747,-150.0,0.00019672,2]
[320320397,1711288250758,-3722.177,0.00019673,2]
[320320398,1711288250767,-150.0,0.00019673,2]
[320320399,1711288250777,-2556.80203619,0.00019676,2]
[320320400,1711288250787,-150.0,0.00019678,2]
[320320401,1711288250797,-150.0,0.00019679,2]
[320320402,1711288250807,-150.0,0.0001968,2]
[320320403,1711288250817,-150.0,0.00019681,2]
[320320404,1711288250827,-150.0,0.00019687,4]
[320320405,1711288250837,-572.59298777,0.00019688,2]
[320320406,1711288250847,-156.23262797,0.00019698,2]
[320320407,1711288250858,-205.20911928,0.00019698,2]
[320320408,1711288250868,-1983.07169693,0.00019698,2]
[320320409,1711288250879,-300.87045004,0.00019698,2]
[320320410,1711288250889,-155.17249607,0.00019699,2]
[320320411,1711288250899,-462961.27411619,0.000197,5]
[320320412,1711288250910,-860.29002886,0.000197,2]
[320320413,1711288250920,-238.47699909,0.000197,2]
[320320414,1711288250930,-18641.42639286,0.000197,5]
[320320415,1711288250940,-479.0,0.000197,2]
[320320416,1711288250949,-2556.80203619,0.00019701,2]
[320320417,1711288250959,-233.20750904,0.00019724,2]
[320320418,1711288250969,-1499.99637605,0.00019724,2]
[320320419,1711288250979,-2556.80203619,0.00019726,2]
[320320420,1711288250989,-500.0,0.00019726,2]
[320320421,1711288250999,-500.0,0.00019726,2]
[320320422,1711288251009,-500.0,0.00019726,2]
[320320423,1711288251019,-500.0,0.00019726,2]
[320320424,1711288251028,-500.0,0.00019726,2]
[320320425,1711288251038,-500.0,0.00019726,2]
[320320426,1711288251048,-500.0,0.00019726,2]
[320320427,1711288251057,-550.77483313,0.00019726,2]
[320320428,1711288251067,-500.0,0.00019726,2]
[320320429,1711288251077,-500.0,0.00019726,2]
[320320430,1711288251087,-500.0,0.00019726,2]
[320320431,1711288251096,-500.0,0.00019726,2]
[320320432,1711288251106,-500.0,0.00019726,2]
[320320433,1711288251116,-625.24094069,0.00019726,2]
[320320434,1711288251128,-500.0,0.00019726,2]
[320320435,1711288251138,-500.0,0.00019726,2]
[320320436,1711288251148,-204.0583692,0.00019726,2]
[320320437,1711288251158,-500.0,0.00019726,2]
[320320438,1711288251167,-500.0,0.00019726,2]
[320320439,1711288251178,-236.19,0.00019726,2]
[320320440,1711288251188,-500.0,0.00019726,2]
[320320441,1711288251198,-500.0,0.00019726,2]
[320320442,1711288251209,-500.0,0.00019726,2]
[320320443,1711288251219,-500.0,0.00019726,2]
[320320444,1711288251229,-500.0,0.00019726,2]
[320320445,1711288251239,-500.0,0.00019726,2]
[320320446,1711288251250,-500.0,0.00019726,2]
[320320447,1711288251262,-500.0,0.00019726,2]
[320320448,1711288251273,-500.0,0.00019726,2]
[320320449,1711288251284,-500.0,0.00019726,2]
[320320450,1711288251293,-500.0,0.00019726,2]
[320320451,1711288251304,-500.0,0.00019726,2]
[320320452,1711288251315,-500.0,0.00019726,2]
[320320453,1711288251325,-500.0,0.00019726,2]
[320320454,1711288251336,-500.0,0.00019726,2]
[320320455,1711288251346,-500.0,0.00019726,2]
[320320456,1711288251356,-500.0,0.00019726,2]
[320320457,1711288251366,-500.0,0.00019726,2]
[320320458,1711288251382,-500.0,0.00019726,2]
[320320459,1711288251392,-500.0,0.00019726,2]
[320320460,1711288251402,-500.0,0.00019726,2]
[320320461,1711288251412,-500.0,0.00019726,2]
[320320462,1711288251424,-500.0,0.00019726,2]
[320320463,1711288251434,-500.0,0.00019726,2]
[320320464,1711288251445,-500.0,0.00019726,2]
[320320465,1711288251456,-500.0,0.00019726,2]
[320320466,1711288251466,-500.0,0.00019726,2]
[320320467,1711288251477,-500.0,0.00019726,2]
[320320468,1711288251489,-500.0,0.00019726,2]
[320320469,1711288251501,-505.24858959,0.00019726,2]
[320320470,1711288251511,-500.0,0.00019726,2]
[320320471,1711288251521,-500.0,0.00019726,2]
[320320472,1711288251532,-500.0,0.00019726,2]
[320320473,1711288251541,-500.0,0.00019726,2]
[320320474,1711288251551,-500.0,0.00019726,2]
[320320475,1711288251560,-495.77619158,0.00019726,2]
[320320476,1711288251571,-500.0,0.00019726,2]
[320320477,1711288251581,-595.53,0.00019726,2]
[320320478,1711288251591,-1389.74,0.00019726,2]
[320320479,1711288251601,-150.0,0.00019726,2]
[320320480,1711288251610,-500.0,0.00019726,2]
[320320481,1711288251620,-500.0,0.00019726,2]
[320320482,1711288251631,-500.0,0.00019726,2]
[320320483,1711288251641,-500.0,0.00019726,2]
[320320484,1711288251651,-500.0,0.00019726,2]
[320320485,1711288251661,-500.0,0.00019726,2]
[320320486,1711288251670,-500.0,0.00019726,2]
[320320487,1711288251681,-254.26382609,0.00019726,2]
[320320488,1711288251691,-500.0,0.00019726,2]
[320320489,1711288251700,-500.0,0.00019726,2]
[320320490,1711288251710,-500.0,0.00019726,2]
[320320491,1711288251720,-500.0,0.00019726,2]
[320320492,1711288251729,-500.0,0.00019726,2]
[320320493,1711288251739,-500.0,0.00019726,2]
[320320494,1711288251749,-526.71112818,0.00019726,2]
[320320495,1711288251758,-500.0,0.00019726,2]
[320320496,1711288251767,-500.0,0.00019726,2]
[320320497,1711288251777,-500.0,0.00019726,2]
[320320498,1711288251786,-473.04,0.00019726,2]
[320320499,1711288251796,-500.0,0.00019726,2]
[320320500,1711288251805,-500.0,0.00019726,2]
[320320501,1711288251815,-500.0,0.00019726,2]
[320320502,1711288251825,-353.89557321,0.00019726,2]
[320320503,1711288251834,-500.0,0.00019726,2]
[320320504,1711288251844,-500.0,0.00019726,2]
[320320505,1711288251853,-500.0,0.00019726,2]
[320320506,1711288251862,-500.0,0.00019726,2]
[320320507,1711288251874,-500.0,0.00019726,2]
[320320508,1711288251884,-500.0,0.00019726,2]
[320320509,1711288251893,-2169.46,0.00019726,2]
[320320510,1711288251903,-500.0,0.00019726,2]
[320320511,1711288251913,-500.0,0.00019726,2]
[320320512,1711288251922,-500.0,0.00019726,2]
[320320513,1711288251932,-319.87,0.00019726,2]
[320320514,1711288251942,-500.0,0.00019726,2]
[320320515,1711288251952,-500.0,0.00019726,2]
[320320516,1711288251962,-500.0,0.00019726,2]
[320320517,1711288251972,-364.87102753,0.00019726,2]
[320320518,1711288251982,-2400.18,0.00019726,2]
[320320519,1711288251992,-500.0,0.00019726,2]
[320320520,1711288252002,-500.0,0.00019726,2]
[320320521,1711288252012,-10674.0,0.00019726,2]
[320320522,1711288252022,-500.0,0.00019726,2]
[320320523,1711288252032,-500.0,0.00019726,2]
[320320524,1711288252043,-500.0,0.00019726,2]
[320320525,1711288252052,-543.66,0.00019726,2]
[320320526,1711288252063,-500.0,0.00019726,2]
[320320527,1711288252074,-500.0,0.00019726,2]
[320320528,1711288252084,-500.0,0.00019726,2]
[320320529,1711288252094,-500.0,0.00019726,2]
[320320530,1711288252105,-2914.41,0.00019726,2]
[320320531,1711288252290,-516.13,0.00019726,2]
[320320532,1711288252299,-500.0,0.00019726,2]
[320320533,1711288252309,-728.96,0.00019726,2]
[320320534,1711288252319,-4051.17,0.00019726,2]
[320320535,1711288252328,-500.0,0.00019726,2]
[320320536,1711288252337,-500.0,0.00019726,2]
[320320537,1711288252347,-393.16839611,0.00019726,2]
[320320538,1711288252357,-500.0,0.00019726,2]
[320320539,1711288252366,-500.0,0.00019726,2]
[320320540,1711288252378,-500.0,0.00019726,2]
[320320541,1711288252388,-1700.71,0.00019726,2]
[320320542,1711288252398,-500.0,0.00019726,2]
[320320543,1711288252408,-500.0,0.00019726,2]
[320320544,1711288252419,-500.0,0.00019726,2]
[320320546,1711288252430,-500.0,0.00019726,2]
[320320547,1711288252440,-529.33,0.00019726,2]
[320320548,1711288252450,-500.0,0.00019726,2]
[320320549,1711288252460,-500.0,0.00019726,2]
[320320550,1711288252470,-500.0,0.00019726,2]
[320320551,1711288252480,-500.0,0.00019726,2]
[320320552,1711288252491,-500.0,0.00019726,2]
[320320553,1711288252501,-500.0,0.00019726,2]
[320320554,1711288252510,-500.0,0.00019726,2]
[320320555,1711288252520,-685.67,0.00019726,2]
[320320556,1711288252529,-500.0,0.00019726,2]
[320320557,1711288252539,-613.56,0.00019726,2]
[320320558,1711288252548,-675.26,0.00019726,2]
[320320559,1711288252557,-500.0,0.00019726,2]
[320320560,1711288252566,-1143.5,0.00019726,2]
[320320561,1711288252575,-500.0,0.00019726,2]
[320320562,1711288252585,-296.91,0.00019726,2]
[320320563,1711288252594,-500.0,0.00019726,2]
[320320564,1711288252603,-1455.29,0.00019726,2]
[320320565,1711288252612,-644.77,0.00019726,2]
[320320566,1711288252625,-1117.41,0.00019726,2]
[320320567,1711288252635,-500.0,0.00019726,2]
[320320568,1711288252645,-500.0,0.00019726,2]
[320320569,1711288252654,-500.0,0.00019726,2]
[320320570,1711288252664,-500.0,0.00019726,2]
[320320571,1711288252673,-375.75478225,0.00019726,2]
[320320572,1711288252684,-500.0,0.00019726,2]
[320320573,1711288252693,-500.0,0.00019726,2]
[320320574,1711288252702,-500.0,0.00019726,2]
[320320575,1711288252712,-500.0,0.00019726,2]
[320320576,1711288252721,-500.0,0.00019726,2]
[320320577,1711288252730,-1208.46,0.00019726,2]
[320320578,1711288252740,-576.67,0.00019726,2]
[320320579,1711288252749,-500.0,0.00019726,2]
[320320580,1711288252758,-500.0,0.00019726,2]
[320320581,1711288252768,-2921.34,0.00019726,2]
[320320582,1711288252778,-713.51,0.00019726,2]
[320320583,1711288252788,-583.52,0.00019726,2]
[320320584,1711288252797,-500.0,0.00019726,2]
[320320585,1711288252807,-500.0,0.00019726,2]
[320320586,1711288252816,-1839.25,0.00019726,2]
[320320587,1711288252826,-576.74,0.00019726,2]
[320320588,1711288252835,-693.69,0.00019726,2]
[320320589,1711288252844,-500.0,0.00019726,2]
[320320590,1711288252854,-500.0,0.00019726,2]
[320320591,1711288252863,-500.0,0.00019726,2]
[320320592,1711288252874,-500.0,0.00019726,2]
[320320593,1711288252883,-500.0,0.00019726,2]
[320320594,1711288252893,-500.0,0.00019726,2]
[320320595,1711288252902,-500.0,0.00019726,2]
[320320596,1711288252912,-1519.9,0.00019726,2]
[320320597,1711288252922,-1524.46,0.00019726,2]
[320320598,1711288252931,-500.0,0.00019726,2]
[320320599,1711288252940,-500.0,0.00019726,2]
[320320600,1711288252950,-500.0,0.00019726,2]
[320320601,1711288252960,-890.11,0.00019726,2]
[320320602,1711288252970,-430.64,0.00019726,2]
[320320603,1711288252980,-956.84,0.00019726,2]
[320320604,1711288252989,-500.0,0.00019726,2]
[320320605,1711288252999,-10749.62,0.00019726,2]
[320320606,1711288253010,-500.0,0.00019726,2]
[320320607,1711288253022,-500.0,0.00019726,2]
[320320608,1711288253034,-2214.29,0.00019726,2]
[320320609,1711288253044,-500.0,0.00019726,2]
[320320610,1711288253054,-500.0,0.00019726,2]
[320320611,1711288253065,-500.0,0.00019726,2]
[320320612,1711288253074,-2299.89,0.00019726,2]
[320320613,1711288253084,-1251.95,0.00019726,2]
[320320614,1711288253094,-597.84860836,0.00019726,2]
[320320615,1711288253105,-816.05,0.00019726,2]
[320320616,1711288253115,-345.76257859,0.00019726,2]
[320320617,1711288253129,-786.26,0.00019726,2]
[320320618,1711288253138,-500.0,0.00019726,2]
[320320619,1711288253148,-454.7,0.00019726,2]
[320320620,1711288253157,-1963.67,0.00019726,2]
[320320621,1711288253166,-500.0,0.00019726,2]
[320320622,1711288253177,-1074.55,0.00019726,2]
[320320623,1711288253188,-500.0,0.00019726,2]
[320320624,1711288253197,-500.0,0.00019726,2]
[320320625,1711288253207,-2153.79,0.00019726,2]
[320320626,1711288253217,-500.0,0.00019726,2]
[320320627,1711288253227,-1076.79,0.00019726,2]
[320320628,1711288253236,-500.0,0.00019726,2]
[320320629,1711288253246,-500.0,0.00019726,2]
[320320630,1711288253256,-500.0,0.00019726,2]
[320320631,1711288253266,-577.25436466,0.00019726,2]
[320320632,1711288253275,-1164.94,0.00019726,2]
[320320633,1711288253285,-565.12,0.00019726,2]
[320320634,1711288253294,-1292.93,0.00019726,2]
[320320635,1711288253304,-500.0,0.00019726,2]
[320320636,1711288253314,-840.82,0.00019726,2]
[320320637,1711288253326,-500.0,0.00019726,2]
[320320638,1711288253338,-500.0,0.00019726,2]
[320320639,1711288253347,-500.0,0.00019726,2]
[320320640,1711288253357,-3064.78,0.00019726,2]
[320320641,1711288253367,-868.43,0.00019726,2]
[320320642,1711288253381,-500.0,0.00019726,2]
[320320643,1711288253391,-500.0,0.00019726,2]
[320320644,1711288253401,-7809.52,0.00019726,2]
[320320645,1711288253412,-1927.15,0.00019726,2]
[320320646,1711288253424,-500.0,0.00019726,2]
[320320647,1711288253435,-500.0,0.00019726,2]
[320320648,1711288253445,-500.0,0.00019726,2]
[320320649,1711288253456,-500.0,0.00019726,2]
[320320650,1711288253466,-500.0,0.00019726,2]
[320320651,1711288253475,-1729.44,0.00019726,2]
[320320652,1711288253484,-500.0,0.00019726,2]
[320320653,1711288253493,-500.0,0.00019726,2]
[320320654,1711288253506,-1065.6,0.00019726,2]
[320320655,1711288253517,-511.14,0.00019726,2]
[320320656,1711288253527,-500.0,0.00019726,2]
[320320657,1711288253537,-445.76818115,0.00019726,2]
[320320658,1711288253546,-729.51,0.00019726,2]
[320320659,1711288253556,-1327.06,0.00019726,2]
[320320660,1711288253565,-1048.58,0.00019726,2]
[320320661,1711288253574,-1004.91,0.00019726,2]
[320320662,1711288253584,-550.32,0.00019726,2]
[320320663,1711288253594,-1404.4,0.00019726,2]
[320320664,1711288253604,-500.0,0.00019726,2]
[320320665,1711288253613,-500.0,0.00019726,2]
[320320666,1711288253622,-629.99,0.00019726,2]
[320320667,1711288253635,-500.0,0.00019726,2]
[320320668,1711288253644,-500.0,0.00019726,2]
[320320669,1711288253654,-4159.68,0.00019726,2]
[320320670,1711288253663,-794.14,0.00019726,2]
[320320671,1711288253673,-4046.64,0.00019726,2]
[320320672,1711288253682,-500.0,0.00019726,2]
[320320673,1711288253692,-500.0,0.00019726,2]
[320320674,1711288253701,-500.0,0.00019726,2]
[320320675,1711288253712,-500.0,0.00019726,2]
[320320676,1711288253721,-1495.08,0.00019726,2]
[320320677,1711288253733,-561.72,0.00019726,2]
[320320678,1711288253742,-2204.64,0.00019726,2]
[320320679,1711288253752,-609.94,0.00019726,2]
[320320680,1711288253763,-500.0,0.00019726,2]
[320320681,1711288253773,-500.0,0.00019726,2]
[320320682,1711288253782,-1274.56,0.00019726,2]
[320320683,1711288253791,-289.22597883,0.0001975,2]
[320320684,1711288253801,-2556.80203619,0.00019751,2]
[320320685,1711288253810,-160.0587475,0.0001976,2]
[320320686,1711288253819,-1236.45752342,0.00019774,2]
[320320687,1711288253829,-2556.80203619,0.00019775,2]
[320320688,1711288253838,-160.0587475,0.00019776,2]
[320320689,1711288253849,-291.54,0.000198,2]
[320320690,1711288253858,-300.05578703,0.000198,2]
[320320691,1711288253868,-320.73,0.000198,2]
[320320692,1711288253879,-2556.80203619,0.000198,2]
[320320693,1711288253889,-194.11260488,0.00019805,2]
[320320694,1711288253898,-167.24485897,0.0001981,2]
[320320695,1711288253907,-1121.60682039,0.00019818,2]
[320320696,1711288253916,-2556.80203619,0.00019825,2]
[320320697,1711288253926,-2556.80203619,0.0001985,2]
[320320698,1711288253936,-300.0,0.00019857,2]
[320320699,1711288253945,-1400.0,0.00019857,2]
[320320700,1711288253956,-2556.80203619,0.00019875,2]
[320320701,1711288253966,-2286.5755541,0.00019878,2]
[320320702,1711288253975,-158.0937151,0.0001988,2]
[320320703,1711288253985,-1236.45752342,0.00019884,2]
[320320704,1711288253994,-317857.75742126,0.00019888,2]
[320320705,1711288254004,-500.78599082,0.00019898,2]
[320320706,1711288254013,-484.81650825,0.000199,2]
[320320707,1711288254022,-2816.25742758,0.000199,2]
[320320708,1711288254031,-5259.22097472,0.000199,2]
[320320709,1711288254041,-2556.80203619,0.000199,2]
[320320710,1711288254050,-369.72047797,0.000199,2]
[320320711,1711288254060,-151.78850401,0.000199,2]
[320320712,1711288254069,-151.78850355,0.000199,2]
[320320713,1711288254079,-151.78850355,0.000199,2]
[320320714,1711288254088,-151.78850355,0.000199,2]
[320320715,1711288254098,-151.78850355,0.000199,2]
[320320716,1711288254107,-151.78850355,0.000199,2]
[320320717,1711288254116,-151.78850355,0.000199,2]
[320320718,1711288254126,-151.78850355,0.000199,2]
[320320719,1711288254135,-151.78850355,0.000199,2]
[320320720,1711288254145,-151.78850355,0.000199,2]
[320320721,1711288254154,-151.78850355,0.000199,2]
[320320722,1711288254163,-151.78850355,0.000199,2]
[320320723,1711288254173,-151.78850355,0.000199,2]
[320320724,1711288254182,-151.78850355,0.000199,2]
[320320725,1711288254196,-206.91498483,0.000199,2]
[320320726,1711288254210,-151.78850355,0.000199,2]
[320320727,1711288254224,-151.78850355,0.000199,2]
[320320728,1711288254238,-151.78850355,0.000199,2]
[320320729,1711288254250,-151.78850355,0.000199,2]
[320320730,1711288254260,-151.78850355,0.000199,2]
[320320731,1711288254274,-151.78850355,0.000199,2]
[320320732,1711288254286,-151.78850355,0.000199,2]
[320320733,1711288254299,-151.78850355,0.000199,2]
[320320734,1711288254312,-151.78850355,0.000199,2]
[320320735,1711288254324,-151.78850355,0.000199,2]
[320320736,1711288254337,-151.78850355,0.000199,2]
[320320737,1711288254349,-289.22597883,0.000199,2]
[320320738,1711288254360,-160.0,0.000199,2]
[320320739,1711288254374,-151.78850355,0.00019908,2]
[320320740,1711288254386,-196.19869264,0.00019934,2]
[320320741,1711288254399,-969.20694811,0.0001994,2]
[320320742,1711288254411,-151.78850355,0.00019941,2]
[320320743,1711288254425,-150.0,0.00019973,4]
[320320744,1711288254438,-150.0,0.00019973,4]
[320320745,1711288254449,-150.0,0.00019973,4]
[320320746,1711288254459,-150.0,0.00019973,4]
[320320747,1711288254474,-151.78850355,0.00019974,2]
[320320748,1711288254486,-168581.3185532,0.00019984,2]
[320320749,1711288254498,-1876.0960444,0.00019984,2]
[320320750,1711288254512,-131696.652021,0.00019986,2]
[320320751,1711288254523,-94811.9854889,0.00019986,2]
[320320752,1711288254535,-57927.3189568,0.00019986,2]
[320320753,1711288254546,-1465.6165347,0.00019986,2]
[320320754,1711288254559,-1055.137025,0.00019986,2]
[320320755,1711288254571,-644.6575153,0.00019986,2]
[320320756,1711288254584,-1030.68257,0.0001999,2]
[320320757,1711288254596,-813.48097287,0.00019994,2]
[320320758,1711288254610,-1599.27233401,0.00019996,2]
[320320759,1711288254622,-907.90438473,0.00019996,2]
[320320760,1711288254636,-1222.10181458,0.00019996,2]
[320320761,1711288254647,-1396.8947,0.00019996,2]
[320320762,1711288254657,-155.0,0.00019997,2]
[320320763,1711288254667,-488.18900363,0.00019998,2]
[320320764,1711288254678,-577958.58676695,0.00019998,2]
[320320765,1711288254701,-506.94609261,0.00019998,2]
[320320766,1711288254715,-908247.36021697,0.00019998,2]
[320320767,1711288254733,-6834.3414779,0.00019998,2]
[320320768,1711288254747,-7697.30805133,0.00019998,2]
[320320769,1711288255278,-265.1675,0.00017798,2]
[320320770,1711288255298,-234.8325,0.00017798,2]
[320320771,1711288255309,-529.55262875,0.00019177,2]
[320320772,1711288255321,-399.39036933,0.00019459,2]
[320320773,1711288255332,-150.0,0.00019467,2]
[320320774,1711288255343,-150.0,0.0001948,2]
[320320775,1711288255354,-150.0,0.00019488,2]
[320320776,1711288255365,-150.0,0.0001949,2]
[320320777,1711288255377,-150.0,0.00019533,2]
[320320778,1711288255388,-150.0,0.00019545,2]
[320320779,1711288255399,-150.0,0.0001955,2]
[320320780,1711288255411,-150.0,0.000196,2]
[320320781,1711288255422,-150.0,0.00019611,2]
[320320782,1711288255434,-150.0,0.00019613,2]
[320320783,1711288255445,-150.0,0.00019653,2]
[320320784,1711288255458,-150.0,0.00019683,2]
[320320785,1711288255470,-150.0,0.00019696,2]
[320320786,1711288255482,-317352.68730197,0.00019998,2]
[320320787,1711288255496,-94828.58044274,0.00019998,2]
[320320788,1711288255511,-383.752984,0.00019998,2]
[320320789,1711288255528,-23342.06925567,0.00019998,2]
[320320790,1711288256900,639.49262913,0.00014495,2]
[320320793,1711288272300,12375.71575008,0.000154,2]
[320320794,1711288286931,477.42,0.0002302,120]
[320320800,1711288476166,666.72954101,0.00024,120]
[320320801,1711288548391,262.26,0.00015473,2]
[320320804,1711289019776,249.14,0.00014911,2]
[320320805,1711289161338,318.29693147,0.00014911,2]
[320320806,1711289166009,1030.41935323,0.00014911,2]
[320320807,1711289167319,-60000.0,0.000197,5]
[320320808,1711289179386,375.33069701,0.00014911,2]
[320320809,1711289181958,610.85739391,0.00014911,2]
[320321122,1711289432184,-484.31503574,0.00016436,2]
[320321125,1711289432193,-236.17286549,0.00016437,2]
[320321127,1711289432206,-753.08526197,0.00016437,2]
[320321129,1711289432217,-718.2001506,0.00016437,2]
[320321130,1711289432627,-416.54172194,0.00016437,2]
[320321132,1711289432637,-235.51780549,0.00016438,2]
[320321133,1711289432647,-464.53,0.00016611,2]
[320321134,1711289432657,-250.0,0.00016617,2]
[320321135,1711289432666,-200.0,0.0001662,2]
[320321136,1711289432675,-250.0,0.00016669,2]
[320321137,1711289432685,-513.97,0.00016687,2]
[320321138,1711289432694,-1408.48,0.0001673,2]
[320321139,1711289432704,-240.0,0.00016774,2]
[320321140,1711289432714,-2000.0,0.0001678,2]
[320321141,1711289432723,-158.51,0.000169,2]
[320321142,1711289432733,-499.99,0.000169,2]
[320321143,1711289432744,-300.0,0.00016917,2]
[320321144,1711289432756,-983.5,0.00016918,2]
[320321145,1711289432765,-670.459,0.00017132,2]
[320321146,1711289432775,-249.14,0.00017174,2]
[320321147,1711289432786,-760.0,0.00017232,2]
[320321148,1711289432795,-176.22,0.00017563,2]
[320321149,1711289432805,-1100.70696188,0.00017708,2]
[320321150,1711289432814,-249.65614262,0.00017798,2]
[320321151,1711289432825,-157.0,0.00017835,2]
[320321152,1711289432834,-23793.0687,0.0001788,2]
[320321153,1711289432844,-213.35472236,0.00017898,2]
[320321154,1711289432853,-213.35472236,0.000179,2]
[320321155,1711289432863,-218.85679702,0.000179,2]
[320321156,1711289432872,-155.74903654,0.00017908,2]
[320321157,1711289432882,-260.52601127,0.00017978,2]
[320321158,1711289432892,-520.60897951,0.00017978,2]
[320321159,1711289432907,-205.4134644,0.00017979,2]
[320321160,1711289432917,-4174.77102397,0.00017979,2]
[320321161,1711289432927,-1000.0,0.00017979,2]
[320321162,1711289432937,-2938.63524937,0.00017979,2]
[320321163,1711289433436,-14526.13049266,0.00017979,2]
[320321164,1711289433472,-549.53477797,0.00017979,2]
[320321165,1711289433483,-1587.88308601,0.00017979,2]
[320321166,1711289433495,-4210.74430529,0.00017979,2]
[320321167,1711289433518,-80636.89059899,0.00017979,2]
[320321168,1711289433528,-2521.7825,0.00017979,2]
[320321169,1711289433537,-421237.2884715,0.0001798,2]
[320321170,1711289433554,-16692.47211767,0.0001798,2]
[320321171,1711289433566,-318.00474,0.0001798,2]
[320321172,1711289433578,-17819.99999985,0.0001798,2]
[320321225,1711289438182,-272188.97429912,0.0001798,2]
[320321228,1711289438192,-214.5273441,0.00017998,2]
[320321231,1711289438201,-191.37408895,0.00017998,2]
[320321234,1711289438211,-155.28448132,0.00017998,2]
[320321236,1711289438221,-155.0,0.00017998,2]
[320321239,1711289438230,-1111.48350798,0.00017998,2]
[320321242,1711289438239,-155.2003905,0.00017998,2]
[320321244,1711289438248,-4276.36265235,0.00017998,2]
[320321247,1711289438258,-155.0,0.00017998,2]
[320321250,1711289438266,-1052.06896339,0.00017998,2]
[320321253,1711289438275,-258.81574842,0.00017998,2]
[320321255,1711289438285,-373.63860962,0.00017998,2]
[320321258,1711289438295,-199.78878076,0.00017998,2]
[320321261,1711289438305,-223.28071373,0.00017998,2]
[320321263,1711289438314,-248.44551428,0.00017998,2]
[320321266,1711289438323,-775.19834796,0.00017998,2]
[320321268,1711289438332,-1060.34235889,0.00017998,2]
[320321270,1711289438342,-160.21400427,0.00017998,2]
[320321272,1711289438351,-155.0,0.00017998,2]
[320321274,1711289438360,-155.2177399,0.00017998,2]
[320321276,1711289438370,-15851.36774348,0.00017998,2]
[320321278,1711289438379,-549.53477797,0.00017999,2]
[320321280,1711289438389,-5148.708862,0.00017999,3]
[320321282,1711289438398,-555019.49499621,0.00017999,2]
[320321293,1711289438490,-3398.95352824,0.00017999,2]
[320321295,1711289438502,-307.0,0.00017999,2]
[320321297,1711289438514,-313.01999999,0.00017999,2]
[320321299,1711289438525,-25006.12140998,0.00017999,2]
[320321301,1711289438537,-7611.69787559,0.00017999,2]